[Event "XV Closed IM BCC 2021"]
[Site "Barcelona"]
[Date "2021.05.10"]
[Round "7.4"]
[White "Hernandez, Cristian Andres"]
[Black "Girel, Joseph"]
[Result "0-1"]
[ECO "E46"]
[WhiteElo "2357"]
[BlackElo "2310"]
[Annotator "RC"]
[PlyCount "88"]
[EventDate "2021.05.03"]
[EventType "tourn"]
[EventCountry "ESP"]
[SourceTitle "playchess.com"]
[Source "ChessBase"]
[SourceQuality "1"]
[TimeControl "5400+30"]

1. d4 Nf6 2. c4 e6 3. Nc3 Bb4 4. e3 O-O 5. Nge2 c6 6. a3 Ba5 7. b4 Bc7 8. e4 d5 9. e5 Nfd7 10. Nf4 c5 11. bxc5 Ba5 12. Bd2 Nc6 13. cxd5 Nxd4 14. Qa4 Nxc5 15. Qxd4 Nb3 16. Qa4 Nxa1 17. Bd3 Qc7 18. Nfe2 Qxe5 19. Qxa5 Nb3 20. Qb4 Nxd2 21. Kxd2 Bd7 22. Qxb7 Rfd8 23. Qb4 exd5 24. Qd4 Qd6 25. Qb4 Qe5 26. f4 Qh5 27. Qd4 Rab8 28. h3 Rb2+ 29. Kc1 Rdb8 30. Re1 Qh4 31. Rd1 Qe7 32. Bc2 Qxa3 33. Kd2 Bf5 34. Rc1 Qb3 35. Qe5 Bxc2 36. Ke1 Bd3 37. Nd4 Qc4 38. f5 Be4 39. Nce2 Qb4+ 40. Rc3 Bd3 41. Qxb8+ Qxb8 42. Rxd3 a5 43. f6 gxf6 44. Nc6 Rxe2+ 0-1

[Event "XV Closed IM BCC 2021"]
[Site "Barcelona"]
[Date "2021.05.10"]
[Round "7.5"]
[White "Valenzuela Gomez, Fernando"]
[Black "Perez Mitjans, Orelvis"]
[Result "1-0"]
[ECO "B76"]
[WhiteElo "2382"]
[BlackElo "2412"]
[Annotator "NA"]
[PlyCount "109"]
[EventDate "2021.05.03"]
[EventType "tourn"]
[EventCountry "ESP"]
[SourceTitle "playchess.com"]
[Source "ChessBase"]
[SourceQuality "1"]
[TimeControl "5400+30"]

1. e4 {[%emt 0:03:48]} c5 {[%emt 0:15:46]} 2. Nf3 {[%emt 0:00:10]} d6 {[%emt 0:00:03]} 3. d4 {[%emt 0:00:12]} cxd4 {[%emt 0:00:06]} 4. Nxd4 {[%emt 0:00:06]} Nf6 {[%emt 0:00:03]} 5. Nc3 {[%emt 0:00:10]} g6 {[%emt 0:00:02]} 6. Be3 {[%emt 0:00:22]} Bg7 {[%emt 0:00:05]} 7. f3 {[%emt 0:00:35]} O-O {[%emt 0:00:07]} 8. Qd2 {[%emt 0:00:12]} Nc6 {[%emt 0:00:04]} 9. O-O-O {[%emt 0:00:14]} d5 {[%emt 0:00:04]} 10. exd5 {[%emt 0:00:43]} Nxd5 {[%emt 0:00:06]} 11. Nxc6 {[%emt 0:00:33]} bxc6 {[%emt 0:00:07]} 12. Bd4 {[%emt 0:00:22]} Bxd4 {[%emt 0:00:06]} 13. Qxd4 {[%emt 0:00:41]} Qb6 {[%emt 0:00:02]} 14. Na4 {[%emt 0:05:44]} Qc7 {[%emt 0:24:01]} 15. Bc4 {[%emt 0:00:18]} Rb8 {[%emt 0:04:33]} 16. a3 {[%emt 0:09:50]} Nb6 {[%emt 0:09:11]} 17. Nc5 {[%emt 0:15:15]} Nxc4 {[%emt 0:18:30]} 18. Qxc4 {[%emt 0:00:46]} Qe5 {[%emt 0:05:56]} 19. Qd4 {[%emt 0:01:01]} Qg5+ {[%emt 0:00:06]} 20. Rd2 {[%emt 0:01:49]} Bf5 {[%emt 0:00:13]} 21. Rhd1 {[%emt 0:17:23]} Rbd8 {[%emt 0:03:58]} 22. Qc3 {[%emt 0:00:30]} Rd5 {[%emt 0:03:03]} 23. Nb3 {[%emt 0:08:02]} e5 {[%emt 0:02:30]} 24. Kb1 {[%emt 0:02:45]} h5 {[%emt 0:02:58]} 25. Qxc6 {[%emt 0:06:57]} Rxd2 {[%emt 0:00:16]} 26. Rxd2 {[%emt 0:00:14]} Qe3 {[%emt 0:00:35]} 27. Qc3 {[%emt 0:01:50]} Qg1+ {[%emt 0:05:41]} 28. Nc1 {[%emt 0:02:19]} e4 {[%emt 0:00:29]} 29. fxe4 {[%emt 0:01:19]} Bxe4 {[%emt 0:00:02]} 30. g3 {[%emt 0:00:35]} Bf5 {[%emt 0:01:29]} 31. Qe5 {[%emt 0:04:48]} Rc8 {[%emt 0:01:08]} 32. b3 {[%emt 0:01:56]} Kh7 {[%emt 0:01:50]} 33. Kb2 {[%emt 0:02:07]} Qh1 {[%emt 0:01:00]} 34. Qf6 {[%emt 0:03:17]} Rc7 {[%emt 0:00:28]} 35. Qe5 {[%emt 0:03:17]} Qc6 {[%emt 0:01:36]} 36. c4 {[%emt 0:01:11]} Rc8 {[%emt 0:00:32]} 37. Qd5 {[%emt 0:01:31]} Qf6+ {[%emt 0:00:47]} 38. Qd4 {[%emt 0:00:08]} Qg5 {[%emt 0:00:09]} 39. Na2 {[%emt 0:00:44]} Qe7 {[%emt 0:01:14]} 40. Nc3 {[%emt 0:00:43]} Qe1 {[%emt 0:00:13]} 41. Rd1 {[%emt 0:00:57]} Qe6 {[%emt 0:00:02]} 42. Qxa7 {[%emt 0:01:50]} g5 {[%emt 0:00:27]} 43. Qd4 {[%emt 0:00:15]} Bg6 {[%emt 0:00:07]} 44. h4 {[%emt 0:00:54]} Qf5 {[%emt 0:00:42]} 45. Qd2 {[%emt 0:00:53]} g4 {[%emt 0:00:47]} 46. a4 {[%emt 0:01:37]} Re8 {[%emt 0:00:33]} 47. Re1 {[%emt 0:00:45]} Rb8 {[%emt 0:00:39]} 48. Nd5 {[%emt 0:00:26]} Qf3 {[%emt 0:00:21]} 49. Qc3 {[%emt 0:00:36]} Qf2+ {[%emt 0:00:13]} 50. Ka3 {[%emt 0:00:32]} Bc2 {[%emt 0:00:14]} 51. b4 {[%emt 0:00:56]} Bxa4 {[%emt 0:01:26]} 52. Qd3+ {[%emt 0:00:57]} Kh8 {[%emt 0:00:39]} 53. Qe3 {[%emt 0:00:37]} Qxe3+ {[%emt 0:00:29]} 54. Rxe3 {[%emt 0:00:11]} Bc6 {[%emt 0:00:19]} 55. Nf6 {[%emt 0:00:30]} 1-0

[Event "XV Closed IM BCC 2021"]
[Site "Barcelona"]
[Date "2021.05.11"]
[Round "8.2"]
[White "Girel, Joseph"]
[Black "Valenzuela Gomez, Fernando"]
[Result "1-0"]
[ECO "B91"]
[WhiteElo "2310"]
[BlackElo "2382"]
[Annotator "NA"]
[PlyCount "53"]
[EventDate "2021.05.03"]
[EventType "tourn"]
[EventCountry "ESP"]
[SourceTitle "playchess.com"]
[Source "ChessBase"]
[SourceQuality "1"]
[TimeControl "5400+30"]

1. e4 {[%emt 0:00:00]} c5 {[%emt 0:06:39]} 2. Nf3 {[%emt 0:00:00]} d6 {[%emt 0:00:02]} 3. d4 {[%emt 0:00:23]} cxd4 {[%emt 0:00:03]} 4. Nxd4 {[%emt 0:00:17]} Nf6 {[%emt 0:00:04]} 5. Nc3 {[%emt 0:00:21]} a6 {[%emt 0:00:06]} 6. g3 {[%emt 0:00:31]} e5 {[%emt 0:01:25]} 7. Nb3 {[%emt 0:00:15]} Be7 {[%emt 0:03:32]} 8. Bg5 {[%emt 0:00:52]} Be6 {[%emt 0:04:05]} 9. Bxf6 {[%emt 0:00:11]} Bxf6 {[%emt 0:00:02]} 10. Qd3 {[%emt 0:00:33]} Be7 {[%emt 0:07:44]} 11. O-O-O {[%emt 0:00:54]} O-O {[%emt 0:00:38]} 12. f4 {[%emt 0:00:39]} Nc6 {[%emt 0:10:42]} 13. f5 {[%emt 0:02:34]} Bd7 {[%emt 0:14:35]} 14. Nd5 {[%emt 0:07:22]} Bg5+ {[%emt 0:01:06]} 15. Kb1 {[%emt 0:00:23]} a5 {[%emt 0:00:29]} 16. h4 {[%emt 0:03:14]} Bh6 {[%emt 0:01:11]} 17. g4 {[%emt 0:08:43]} a4 {[%emt 0:00:09]} 18. g5 {[%emt 0:05:15]} axb3 {[%emt 0:00:11]} 19. cxb3 {[%emt 0:00:20]} Kh8 {[%emt 0:07:47]} 20. gxh6 {[%emt 0:03:05]} g6 {[%emt 0:01:53]} 21. Bh3 {[%emt 0:03:30]} Nd4 {[%emt 0:03:11]} 22. fxg6 {[%emt 0:04:48]} fxg6 {[%emt 0:00:02]} 23. Bxd7 {[%emt 0:00:39]} Rf3 {[%emt 0:00:54]} 24. Qc4 {[%emt 0:01:23]} Qxd7 {[%emt 0:00:03]} 25. Rxd4 {[%emt 0:02:40]} exd4 {[%emt 0:01:28]} 26. Qxd4+ {[%emt 0:00:19]} Kg8 {[%emt 0:00:03]} 27. Nb6 {[%emt 0:00:51]} 1-0

[Event "XV Closed IM BCC 2021"]
[Site "Barcelona"]
[Date "2021.05.11"]
[Round "8.3"]
[White "Saya, Ethan"]
[Black "Hernandez, Cristian Andres"]
[Result "1-0"]
[ECO "B23"]
[WhiteElo "2230"]
[BlackElo "2357"]
[Annotator "RC"]
[PlyCount "74"]
[EventDate "2021.05.03"]
[EventType "tourn"]
[EventCountry "ESP"]
[SourceTitle "playchess.com"]
[Source "ChessBase"]
[SourceQuality "1"]
[TimeControl "5400+30"]

1. e4 {[%emt 0:00:00]} c5 {[%emt 0:00:00]} 2. Nc3 {[%emt 0:01:04]} e6 {[%emt 0:01:03]} 3. g3 {[%emt 0:00:16]} d5 {[%emt 0:01:16]} 4. Bg2 {[%emt 0:00:07]} Nf6 {[%emt 0:02:46]} 5. d3 {[%emt 0:02:20]} Nc6 {[%emt 0:01:03]} 6. exd5 {[%emt 0:02:37]} Nxd5 {[%emt 0:02:07]} 7. Nge2 {[%emt 0:13:06]} Be7 {[%emt 0:06:05]} 8. O-O {[%emt 0:02:21]} O-O {[%emt 0:00:39]} 9. Nxd5 {[%emt 0:06:48]} exd5 {[%emt 0:00:05]} 10. Nf4 {[%emt 0:00:12]} d4 {[%emt 0:00:05]} 11. Nd5 {[%emt 0:00:26]} Be6 {[%emt 0:05:52]} 12. Nxe7+ {[%emt 0:00:27]} Qxe7 {[%emt 0:00:13]} 13. Re1 {[%emt 0:00:54]} Qd7 {[%emt 0:05:28]} 14. Bd2 {[%emt 0:10:06]} Bd5 {[%emt 0:10:46]} 15. Bxd5 {[%emt 0:00:58]} Qxd5 {[%emt 0:00:09]} 16. Qe2 {[%emt 0:00:08]} f6 {[%emt 0:05:18]} 17. Qe6+ {[%emt 0:18:55]} Qxe6 {[%emt 0:00:17]} 18. Rxe6 {[%emt 0:00:06]} Kf7 {[%emt 0:00:55]} 19. Re4 {[%emt 0:01:38]} Rfe8 {[%emt 0:02:34]} 20. Rae1 {[%emt 0:00:37]} Rxe4 {[%emt 0:00:25]} 21. Rxe4 {[%emt 0:02:54]} b5 {[%emt 0:00:29]} 22. f4 {[%emt 0:05:42]} a5 {[%emt 0:04:05]} 23. Kf2 {[%emt 0:01:11]} Nb4 {[%emt 0:01:13]} 24. Re1 {[%emt 0:04:33]} Nxa2 {[%emt 0:02:20]} 25. Ra1 {[%emt 0:06:39]} Nb4 {[%emt 0:00:11]} 26. Bxb4 {[%emt 0:01:06]} cxb4 {[%emt 0:00:04]} 27. Ke2 {[%emt 0:00:24]} a4 {[%emt 0:00:22]} 28. Kd2 {[%emt 0:00:37]} Re8 {[%emt 0:04:38]} 29. Rf1 {[%emt 0:02:38]} Ke6 {[%emt 0:04:54]} 30. Re1+ {[%emt 0:03:34]} Kd7 {[%emt 0:00:05]} 31. Ra1 {[%emt 0:00:39]} Kd6 {[%emt 0:01:04]} 32. Rf1 {[%emt 0:00:42]} Kc5 {[%emt 0:00:45]} 33. Ra1 {[%emt 0:00:28]} h5 {[%emt 0:01:20]} 34. Rg1 {[%emt 0:00:37]} a3 {[%emt 0:01:22]} 35. b3 {[%emt 0:00:20]} Kd5 {[%emt 0:01:33]} 36. Ra1 {[%emt 0:01:33]} Re3 {[%emt 0:00:23]} 37. Rg1 {[%emt 0:01:14]} Ke6 {[%emt 0:00:20]} 1-0

[Event "XV Closed IM BCC 2021"]
[Site "Barcelona"]
[Date "2021.05.12"]
[Round "9.3"]
[White "Hernandez, Cristian Andres"]
[Black "Lucas, Arthur"]
[Result "1-0"]
[ECO "E91"]
[WhiteElo "2357"]
[BlackElo "2310"]
[Annotator "ChessBase"]
[PlyCount "117"]
[EventDate "2021.05.03"]
[EventType "tourn"]
[EventCountry "ESP"]
[SourceTitle "playchess.com"]
[Source "ChessBase"]
[SourceQuality "1"]
[TimeControl "5400+30"]

1. c4 {[%emt 0:00:00]} Nf6 {[%emt 0:00:00]} 2. Nc3 {[%emt 0:00:23]} g6 {[%emt 0:00:00]} 3. d4 {[%emt 0:00:27]} Bg7 {[%emt 0:00:00]} 4. e4 {[%emt 0:00:10]} d6 {[%emt 0:00:00]} 5. Nf3 {[%emt 0:00:15]} O-O {[%emt 0:00:03]} 6. Be2 {[%emt 0:00:24]} Na6 {[%emt 0:00:05]} 7. O-O {[%emt 0:01:12]} e5 {[%emt 0:00:05]} 8. Re1 {[%emt 0:01:56]} c6 {[%emt 0:00:37]} 9. Rb1 {[%emt 0:01:07]} exd4 {[%emt 0:06:36]} 10. Nxd4 {[%emt 0:00:32]} Nc5 {[%emt 0:00:25]} 11. f3 {[%emt 0:06:13]} a5 {[%emt 0:01:18]} 12. b3 {[%emt 0:03:06]} Re8 {[%emt 0:06:40]} 13. Be3 {[%emt 0:00:30]} Qe7 {[%emt 0:00:30]} 14. Bf1 {[%emt 0:00:30]} Be6 {[%emt 0:00:30]} 15. Qc2 {[%emt 0:00:30]} Rad8 {[%emt 0:00:30]} 16. Qf2 {[%emt 0:00:30]} Bc8 {[%emt 0:00:30]} 17. Rbd1 {[%emt 0:00:30]} Nh5 {[%emt 0:00:30]} 18. Qd2 {[%emt 0:00:30]} Qc7 {[%emt 0:00:30]} 19. Bg5 {[%emt 0:00:30]} Bf6 {[%emt 0:00:30]} 20. Be3 {[%emt 0:00:30]} Ng7 {[%emt 0:00:30]} 21. Bf2 {[%emt 0:00:30]} Nge6 {[%emt 0:00:30]} 22. Nxe6 {[%emt 0:00:30]} Nxe6 {[%emt 0:00:30]} 23. g3 {[%emt 0:00:30]} Bg7 {[%emt 0:00:30]} 24. f4 {[%emt 0:00:30]} Nc5 {[%emt 0:00:30]} 25. Bd4 {[%emt 0:00:30]} Bg4 {[%emt 0:00:30]} 26. Bxg7 {[%emt 0:00:30]} Kxg7 {[%emt 0:00:30]} 27. Qd4+ {[%emt 0:00:30]} Kg8 {[%emt 0:00:30]} 28. Rd2 {[%emt 0:00:30]} f5 {[%emt 0:00:30]} 29. Bg2 {[%emt 0:00:30]} fxe4 {[%emt 0:00:30]} 30. Nxe4 {[%emt 0:00:30]} Nxe4 {[%emt 0:00:30]} 31. Rxe4 {[%emt 0:00:30]} Rxe4 {[%emt 0:00:30]} 32. Qxe4 {[%emt 0:00:30]} Qb6+ {[%emt 0:00:30]} 33. Qd4 {[%emt 0:00:30]} Qxd4+ {[%emt 0:00:30]} 34. Rxd4 {[%emt 0:00:30]} Kf7 {[%emt 0:00:30]} 35. Kf2 {[%emt 0:00:30]} Ke7 {[%emt 0:00:30]} 36. h3 {[%emt 0:00:30]} Bf5 {[%emt 0:00:30]} 37. g4 {[%emt 0:00:30]} Be6 {[%emt 0:00:30]} 38. Be4 {[%emt 0:00:30]} Ra8 {[%emt 0:00:30]} 39. Bc2 {[%emt 0:00:30]} Rb8 {[%emt 0:00:30]} 40. Ke3 {[%emt 0:00:30]} b6 {[%emt 0:00:30]} 41. f5 {[%emt 0:00:30]} gxf5 {[%emt 0:00:30]} 42. gxf5 {[%emt 0:00:30]} Bd7 {[%emt 0:00:30]} 43. Rh4 {[%emt 0:00:30]} Rh8 {[%emt 0:00:30]} 44. Rh6 {[%emt 0:00:30]} Be8 {[%emt 0:00:30]} 45. Kf4 {[%emt 0:00:30]} b5 {[%emt 0:00:30]} 46. cxb5 {[%emt 0:00:30]} cxb5 {[%emt 0:00:30]} 47. Be4 {[%emt 0:00:30]} Bf7 {[%emt 0:00:30]} 48. f6+ {[%emt 0:00:30]} Ke6 {[%emt 0:00:30]} 49. Bf5+ {[%emt 0:00:30]} Kd5 {[%emt 0:00:30]} 50. Rxh7 {[%emt 0:00:30]} Rxh7 {[%emt 0:00:30]} 51. Bxh7 {[%emt 0:00:30]} Ke6 {[%emt 0:00:30]} 52. Kg5 {[%emt 0:00:30]} d5 {[%emt 0:00:30]} 53. h4 {[%emt 0:00:30]} d4 {[%emt 0:00:30]} 54. h5 {[%emt 0:00:30]} Bxh5 {[%emt 0:00:30]} 55. Kxh5 {[%emt 0:00:30]} Kxf6 {[%emt 0:00:30]} 56. Kg4 {[%emt 0:00:30]} Ke5 {[%emt 0:00:30]} 57. Kf3 {[%emt 0:00:30]} Kd5 {[%emt 0:00:30]} 58. Bd3 {[%emt 0:00:30]} Kc5 {[%emt 0:00:30]} 59. a3 {[%emt 0:00:30]} 1-0